[Event "EIBCC 2024"]
[Site "Skopje"]
[Date "2024.12.09"]
[Round "3.6"]
[White "Stankovic, Milos"]
[Black "Jobava, Baadur"]
[Result "0-1"]
[Annotator "TA"]
[ECO "B13"]
[WhiteElo "2462"]
[BlackElo "2578"]
[PlyCount "99"]
[EventDate "2024.12.07"]
[EventCountry "MKD"]
[SourceTitle "playchess.com"]
[Source "ChessBase"]
[SourceQuality "1"]
[TimeControl "180+2"]

{[%evp 19,99,40,31,25,54,35,33,20,19,-18,0,-43,-34,-48,-50,-134,-139,-133,-134,-138,-128,-255,-117,-120,-78,-82,-86,-79,-81,-81,-87,-98,-88,-87,-74,-84,-66,-64,-77,-66,-64,-58,-58,-77,-77,-128,-120,-131,-129,-140,-95,-208,-131,-139,-152,-174,-160,-254,-198,-198,-198,-362,-362,-362,-362,-496,-496,-496,-496,-496,-496,-492,-470,-1335,-897,-1310,-1072,-5431,-2635,-29967,-965,-1976]} 1. d4 {[%emt 0:00:03]} d5 {[%emt 0:00:02]} 2. Nf3 {[%emt 0:00:02]} Nf6 {[%emt 0:00:01]} 3. Bf4 {[%emt 0:00:01]} c5 {[%emt 0:00:01]} 4. e3 {[%emt 0:00:02]} cxd4 {[%emt 0:00:01]} 5. exd4 {[%emt 0:00:03]} Nc6 {[%emt 0:00:00]} 6. Nbd2 {[%emt 0:00:08] B13: Caro-Kann: Exchange Variation and Panov-Botvinnik Attack.} Bf5 {[%emt 0:00:03]} 7. c3 {[%emt 0:00:07]} e6 {[%emt 0:00:01]} 8. Qb3 {[%emt 0:00:10]} Qb6 {[%emt 0:00:01]} 9. Qxb6 {[%emt 0:00:09]} axb6 {[%emt 0:00:01]} 10. Bb5 {[%emt 0:00:07]} Nd7 {[%emt 0:00:01]} 11. O-O {[%emt 0:00:15]} f6 {[%emt 0:00:02]} 12. Rfe1 {[%emt 0:00:05]} g5 {[%emt 0:00:02]} 13. Bg3 {[%emt 0:00:11]} h5 {[%emt 0:00:02]} 14. c4 $146 {[%emt 0:00:26]} ({Predecessor:} 14. h3 Kf7 15. a3 Bh6 16. Re2 g4 17. hxg4 hxg4 18. Ne1 Bg5 19. Bd3 Ne7 20. Nf1 {0-1 Leiva Rodriguez,J (2366)-Jobava,B (2578) Titled Tuesday intern op 08th Nov Late blitz 2022 (9)}) 14... Kf7 {[%emt 0:00:02]} (14... Na7 $5 15. cxd5 Nxb5 16. dxe6 h4 17. exd7+ Kf7 $14) 15. cxd5 {[%emt 0:00:28]} exd5 {[%emt 0:00:01]} 16. h3 $1 {[%emt 0:00:02]} Bb4 {[%emt 0:00:07]} 17. a3 {[%emt 0:00:05]} ({Better is} 17. Red1 $15) 17... Bxd2 $17 {[%emt 0:00:02]} 18. Nxd2 {[%emt 0:00:01]} Nxd4 {[%emt 0:00:02]} 19. Bxd7 {[%emt 0:00:03]} Bxd7 {[%emt 0:00:02]} 20. Rad1 {[%emt 0:00:07] [#]} (20. Bd6 $17 Rhe8 21. Rad1) 20... Ba4 {[%emt 0:00:18]} (20... Nc2 $1 $19 {is more deadly.} 21. Re2 Bb5) 21. b3 $17 {[%emt 0:00:06]} Nxb3 {[%emt 0:00:04]} 22. Nxb3 {[%emt 0:00:01]} Bxb3 {[%emt 0:00:01]} 23. Rb1 {[%emt 0:00:01]} Ba4 {[%emt 0:00:03]} (23... Rxa3 24. Bd6 Rha8 25. Re7+ Kg6 26. Bxa3 Rxa3 27. Re3 $16 (27. Rxb7 d4 $16)) 24. Rxb6 {[%emt 0:00:05]} Bc6 {[%emt 0:00:01]} 25. Bd6 {[%emt 0:00:02]} Rhe8 {[%emt 0:00:01]} 26. Rbb1 {[%emt 0:00:02]} h4 {[%emt 0:00:10]} 27. Bc5 {[%emt 0:00:03]} Kg6 {[%emt 0:00:21]} 28. f3 {[%emt 0:00:02]} Re5 {[%emt 0:00:25]} (28... Rxe1+ {simplifies} 29. Rxe1 Rc8 30. Bd4 Bd7) 29. Kf2 {[%emt 0:00:05]} Kf5 {[%emt 0:00:03]} 30. Rb3 {[%emt 0:00:13]} Ra4 {[%emt 0:00:32]} 31. Rd3 {[%emt 0:00:16]} Rc4 {[%emt 0:00:03]} 32. Bb4 {[%emt 0:00:14]} (32. Be3 $142) 32... d4 $17 {[%emt 0:00:08]} 33. Red1 {[%emt 0:00:02]} Rd5 {[%emt 0:00:01]} 34. R1d2 {[%emt 0:00:08]} Bb5 {[%emt 0:00:06]} 35. Rb3 {[%emt 0:00:03]} (35. Bc3 $17) 35... Ba4 {[%emt 0:00:00]} 36. Rbb2 {[%emt 0:00:02]} d3 {[%emt 0:00:03]} 37. Be7 {[%emt 0:00:06]} b5 {[%emt 0:00:02]} 38. Bb4 {[%emt 0:00:05]} (38. Rb1 $17) 38... Bc2 {[%emt 0:00:02]} 39. Ba5 {[%emt 0:00:03]} Re5 {[%emt 0:00:05]} 40. Bb4 $2 {[%emt 0:00:03]} (40. Kf1 {is a better defense.}) 40... Rc6 $19 {[%emt 0:00:01]} 41. Ba5 {[%emt 0:00:04]} Rce6 {[%emt 0:00:02]} 42. Bb4 {[%emt 0:00:02]} Re2+ {[%emt 0:00:02]} 43. Kf1 {[%emt 0:00:01]} Re1+ {[%emt 0:00:07]} 44. Kf2 {[%emt 0:00:01]} R6e2+ {[%emt 0:00:02]} 45. Rxe2 {[%emt 0:00:01]} Rxe2+ {[%emt 0:00:01]} 46. Kf1 {[%emt 0:00:01]} (46. Kg1 $142) 46... d2 $19 {[%emt 0:00:06]} 47. Bxd2 {[%emt 0:00:04]} Rxd2 {[%emt 0:00:01]} 48. Rxb5+ {[%emt 0:00:00]} Kf4 {[%emt 0:00:07]} 49. Rb6 {[%emt 0:00:05]} f5 {[%emt 0:00:06]} (49... Bd3+ $142 50. Ke1 Rxg2 51. Rxf6+ Bf5 52. Rf8 Rg3 53. Rd8 Rxh3 (53... Kxf3 $2 54. Kd1 $19) (53... Rxf3 $2 54. Rf8 $19) (53... Bxh3 $2 54. Ke2 $19) 54. Rh8 Rxf3 (54... Kxf3 $2 55. Kd1 $19) 55. Kd2 Rxa3 56. Rd8 Rd3+ 57. Rxd3 Bxd3 58. Kxd3 h3 59. Kd4 g4 (59... h2 {leads to mate.} 60. Kc5 g4 61. Kd6 g3 62. Kc5 h1=Q 63. Kc4 Qc6+ 64. Kd4 g2 65. Kd3 g1=Q 66. Kd2 Qf2+ 67. Kd3 Qe3#) 60. Kc5 g3 (60... h2 {gets mated.} 61. Kd4 g3 62. Kd5 g2 63. Kd6 g1=Q 64. Ke7 h1=Q 65. Kf7 Qd5+ 66. Kf8 Qgg8+ 67. Ke7 Qgf7#) 61. Kd6 h2 62. Ke7 h1=Q (62... h1=R {is a self mate.} 63. Ke6 g2 64. Kd6 g1=Q 65. Kd5 Qb6 66. Kc4 Rc1+ 67. Kd5 Qc6+ 68. Kd4 Qe4#) 63. Ke6 g2 64. Kf6 g1=Q (64... g1=R 65. Kf7 Ke5 66. Ke8 Rg8+ 67. Kf7 Qh7#) 65. Kf7 Qd5+ 66. Kf8 Qgg8+ 67. Ke7 Qgf7#) 50. Kg1 {[%emt 0:00:06]} 0-1

[Event "EIBCC 2024"]
[Site "Skopje"]
[Date "2024.12.09"]
[Round "3.7"]
[White "Santos Latasa, Jaime"]
[Black "Vuckovic, Zarko"]
[Result "1-0"]
[Annotator "TA"]
[ECO "A13"]
[WhiteElo "2628"]
[BlackElo "2334"]
[PlyCount "41"]
[EventDate "2024.12.07"]
[EventCountry "MKD"]
[SourceTitle "playchess.com"]
[Source "ChessBase"]
[SourceQuality "1"]
[TimeControl "180+2"]

{[%evp 13,41,4,0,5,0,0,12,0,33,0,31,0,223,153,137,119,116,132,127,130,133,150,351,116,114,111,961,967,29983,29966]} 1. Nf3 {[%emt 0:00:01]} d5 {[%emt 0:00:01]} 2. e3 {[%emt 0:00:01]} Nf6 3. c4 {[%emt 0:00:01]} e6 {[%emt 0:00:01]} 4. Nc3 {[%emt 0:00:00]} Be7 {[%emt 0:00:41]} 5. b3 {[%emt 0:00:01]} O-O {[%emt 0:00:02]} 6. Bb2 {[%emt 0:00:01]} c5 {[%emt 0:00:03]} 7. cxd5 {[%emt 0:00:02]} Nxd5 {[%emt 0:00:01]} 8. Qc2 {[%emt 0:00:01]} Nc6 {[%emt 0:00:10]} 9. h4 {[%emt 0:00:02]} Nf6 {[%emt 0:00:27]} 10. a3 {[%emt 0:00:08] The position is equal.} e5 {[%emt 0:00:03]} 11. Bc4 {[%emt 0:00:05]} a6 {[%emt 0:00:06]} (11... g6 $5) 12. Ng5 {[%emt 0:00:07]} h6 $2 {[%emt 0:00:25]} (12... g6 $11) 13. Nd5 {[%emt 0:00:06] Intending Nxf6+ and mate.} e4 {[%emt 0:00:29]} (13... Nxd5 14. Qh7#) (13... hxg5 $2 14. hxg5 $18) 14. Nxf6+ {[%emt 0:00:20]} Bxf6 {[%emt 0:00:01] [#]} 15. Qxe4 $1 {[%emt 0:00:21][%csl Gg5][%cal Re4h7]} Bxg5 {[%emt 0:00:14]} (15... Bxb2 16. Qh7#) (15... hxg5 $2 16. hxg5 $18) 16. hxg5 $40 {[%emt 0:00:01][%mdl 128] White has strong attack.} Qxg5 {[%emt 0:00:01]} 17. Bd3 {[%emt 0:00:14] White is more active. A strong pair of Bishops.} g6 $2 {[%emt 0:00:25]} (17... f5 $16 {was worth a try.} 18. Qd5+ Kh7) 18. f4 $2 {[%emt 0:00:22]} (18. g4 $18 {is the precise move to win.} Rd8 (18... Bxg4 $2 {too greedy.} 19. f4 $18) 19. O-O-O) 18... Qg3+ $16 {[%emt 0:00:08]} 19. Kf1 {[%emt 0:00:36]} h5 {[%emt 0:00:12][%mdl 8192] [#]} (19... Bf5 $16 20. Rxh6 f6) 20. Rxh5 $3 $18 {[%emt 0:00:07][%csl Gb2][%cal Rh5h8][%mdl 512]} f6 {[%emt 0:00:03] [#]} (20... Nd4 21. Rg5) 21. Rg5 $3 {[%emt 0:00:10][%mdl 512] Weighted Error Value: White=0.31/Black=0.97.  Loses game:     	---       	Black=3      Missed win:     	White=1     	---        Inaccurate:     	White=3     	Black=3      OK:         	White=2     	Black=1      Best:        	---       	Black=3      Strong:       	White=1     	---        Brilliant:      	White=1     	---} 1-0

[Event "EIBCC 2024"]
[Site "Skopje"]
[Date "2024.12.09"]
[Round "3.8"]
[White "Nikolovski, Nikola"]
[Black "Van Foreest, Jorden"]
[Result "0-1"]
[Annotator "TA"]
[ECO "C49"]
[WhiteElo "2407"]
[BlackElo "2677"]
[PlyCount "100"]
[EventDate "2024.12.07"]
[EventCountry "MKD"]
[SourceTitle "playchess.com"]
[Source "ChessBase"]
[SourceQuality "1"]
[TimeControl "180+2"]

{[%evp 29,100,-43,0,-40,-35,-58,-66,-76,-58,-59,-35,-81,-54,-60,-53,-60,-66,-54,0,0,0,0,0,0,0,-7,18,24,16,20,63,0,13,0,164,81,70,-115,0,-39,-20,-25,-25,-49,-16,-46,0,0,26,0,0,-14,-8,-26,0,-15,-12,-58,-5,-162,-164,-150,-8,-306,-311,-570,-467,-1253,-1214,-1732,-1664,-29978,-29979]} 1. e4 {[%emt 0:00:02]} e5 {[%emt 0:00:01]} 2. Nf3 {[%emt 0:00:14]} Nc6 {[%emt 0:00:02]} 3. Nc3 {[%emt 0:00:01]} Nf6 {[%emt 0:00:02]} 4. Bb5 {[%emt 0:00:02]} Bb4 {[%emt 0:00:04]} 5. O-O {[%emt 0:00:15]} O-O {[%emt 0:00:09]} 6. Bxc6 {[%emt 0:00:02]} dxc6 {[%emt 0:00:01]} 7. d3 {[%emt 0:00:02]} Nd7 {[%emt 0:00:02] C49: Four Knights: 4 Bb5 Bb4.} 8. Ne2 {[%emt 0:00:05]} a5 $5 {[%emt 0:00:02][%mdl 4] Exploring less charted territory.} 9. Ng3 {[%emt 0:00:11]} Re8 {[%emt 0:00:01]} 10. Kh1 {[%emt 0:00:19]} Nf8 {[%emt 0:00:05]} 11. h3 $146 {[%emt 0:00:09]} ({Predecessor:} 11. a4 Bd6 12. b3 c5 13. Bb2 f6 14. Nd2 Ne6 15. Nc4 Bf8 16. Ne2 Nd4 17. f4 {1-0 Bocharov,I (2571)-Obgolts,E (2434) Khanty-Mansiysk Governor Cup 18th 2022 (4)}) 11... Ng6 {[%emt 0:00:04]} 12. Nh5 {[%emt 0:00:13]} a4 {[%emt 0:00:12]} 13. a3 {[%emt 0:00:03]} Bd6 {[%emt 0:00:03]} 14. Nh2 {[%emt 0:00:02]} Qh4 {[%emt 0:00:10]} 15. Ng3 {[%emt 0:00:16]} Qd8 {[%emt 0:00:18]} 16. Nh5 {[%emt 0:00:03]} c5 {[%emt 0:00:04]} (16... b5 {is interesting.} 17. Qf3 Qh4 18. Re1 Ne7) 17. f4 {[%emt 0:00:12]} exf4 {[%emt 0:00:02]} 18. Nxf4 {[%emt 0:00:02]} c4 {[%emt 0:00:20]} 19. Qf3 {[%emt 0:00:18]} Qf6 {[%emt 0:00:18]} 20. dxc4 {[%emt 0:00:29]} (20. Nxg6 $15 Qxf3 (20... fxg6 21. Qxf6 gxf6 22. Rxf6 $15) (20... Qxg6 21. Bf4 $17) (20... hxg6 21. Qxf6 gxf6 22. Rxf6 $15) 21. Nxf3 hxg6 (21... fxg6 22. e5 $15) 22. e5) 20... Nxf4 {[%emt 0:00:11]} 21. Bxf4 {[%emt 0:00:01]} Qxf4 {[%emt 0:00:02]} 22. Qxf4 {[%emt 0:00:02]} Bxf4 {[%emt 0:00:02]} 23. Rxf4 {[%emt 0:00:01]} Be6 {[%emt 0:00:01]} (23... g5 $15 24. Rf6 Rxe4) 24. e5 $11 {[%emt 0:00:01]} Red8 {[%emt 0:00:07]} 25. Nf3 {[%emt 0:00:01]} h6 {[%emt 0:00:01]} 26. h4 {[%emt 0:00:02]} Ra6 {[%emt 0:00:14]} 27. Kg1 {[%emt 0:00:15]} Rc6 {[%emt 0:00:28]} 28. b3 {[%emt 0:00:01]} Rc5 {[%emt 0:00:01]} 29. Re1 {[%emt 0:00:06]} Ra8 {[%emt 0:00:01]} 30. Ra1 {[%emt 0:00:10]} (30. Nd4 $14 Bd7 31. e6 fxe6 32. Nxe6 Bxe6 33. Rxe6) 30... Rd8 $11 {[%emt 0:00:35]} 31. Re1 {[%emt 0:00:03]} Kf8 $2 {[%emt 0:00:09]} (31... Ra8 $11) 32. Kf2 {[%emt 0:00:05]} (32. bxa4 Rxc4 (32... Bxc4 33. e6 $11) 33. Rxc4 Bxc4 $17) (32. Nd4 $18 {and White stays clearly on top.} Ke7 33. b4 (33. bxa4 Bxc4 34. h5 Be6 $11)) 32... Ke7 {[%emt 0:00:01]} 33. Ke2 $2 {[%emt 0:00:09] [#]} (33. bxa4 Ra8 34. Rb1 Rxa4 35. Rxb7 Raxc4 36. Rxc4 Rxc4 $17) (33. Nd4 $14 {stays ahead.}) 33... b5 {[%emt 0:00:01]} (33... g5 $1 $17 {[%cal Rg5f4]} 34. hxg5 hxg5) 34. bxa4 {[%emt 0:00:08]} Bxc4+ {[%emt 0:00:04]} 35. Kf2 {[%emt 0:00:00]} bxa4 {[%emt 0:00:01]} 36. Nd4 {[%emt 0:00:05]} Be6 {[%emt 0:00:02]} 37. Re2 {[%emt 0:00:03]} Rc3 {[%emt 0:00:01]} (37... Rdd5 $15) 38. Re3 $11 {[%emt 0:00:01]} Rc4 {[%emt 0:00:02]} 39. c3 {[%emt 0:00:02]} Rc5 {[%emt 0:00:05]} 40. Kf3 {[%emt 0:00:02]} Bd5+ {[%emt 0:00:02]} 41. Kg3 {[%emt 0:00:01]} Be6 {[%emt 0:00:01]} 42. Kf3 {[%emt 0:00:01]} Rb8 {[%emt 0:00:01]} 43. g4 {[%emt 0:00:05]} (43. Nxe6 $11 Kxe6 44. Rg4) 43... Rb2 {[%emt 0:00:01]} (43... g5 $15 44. Rf6 Bd5+ 45. Ke2 (45. Kg3 Rb3 $15) 45... Rb2+ (45... gxh4 46. Rxh6 Rb2+ 47. Kd1 $15) 46. Kd1 Rb1+ (46... gxh4 47. Rxh6 Ra2 48. Rh7 $15) 47. Kd2 gxh4 48. Rxh6 Rb2+ 49. Kd1 Rh2) 44. g5 $2 {[%emt 0:00:02]} (44. Nxe6 $11 {and White has nothing to worry.} Kxe6 45. Rxa4) 44... hxg5 $19 {[%emt 0:00:03]} 45. hxg5 {[%emt 0:00:01]} Ra2 {[%emt 0:00:01]} (45... Bd5+ $17 46. Kg4 g6) 46. Ke4 $2 {[%emt 0:00:02][%mdl 8192]} (46. Nxe6 $11 Kxe6 47. g6 fxg6 48. Rxa4) 46... Bd5+ $19 {[%emt 0:00:03]} (46... Rxa3 47. Nxe6 fxe6 (47... Kxe6 48. Kd4 $17) 48. Kd4 Rd5+ 49. Ke4 $15) 47. Kf5 $2 {[%emt 0:00:02]} (47. Kd3 Rxa3 48. Ne2) 47... Rg2 {[%emt 0:00:03]} 48. Rg4 {[%emt 0:00:03]} (48. Rh4 $142) 48... Be6+ $19 {[%emt 0:00:02]} 49. Nxe6 {[%emt 0:00:01]} fxe6+ {[%emt 0:00:01]} 50. Kf4 {[%emt 0:00:03]} Rc4+ {[%emt 0:00:01]} 0-1

[Event "EIBCC 2024"]
[Site "Skopje"]
[Date "2024.12.09"]
[Round "3.9"]
[White "Fressinet, Laurent"]
[Black "Arnaudov, G. Petar"]
[Result "0-1"]
[Annotator "TA"]
[ECO "E06"]
[WhiteElo "2588"]
[BlackElo "2401"]
[PlyCount "68"]
[EventDate "2024.12.07"]
[EventCountry "MKD"]
[SourceTitle "playchess.com"]
[Source "ChessBase"]
[SourceQuality "1"]
[TimeControl "180+2"]

{[%evp 10,68,27,0,18,16,21,7,27,-2,14,-8,-8,-14,-10,-25,-14,-34,0,-57,21,24,21,-16,-7,-23,-36,-103,-96,-116,-8,-7,-2,0,0,-3,-8,-29,-26,-102,-104,-142,-139,-156,-23,-22,-12,-571,-587,-577,-549,-624,-601,-1012,-667,-671,-672,-744,-691,-695,-694]} 1. Nf3 {[%emt 0:00:01]} Nf6 {[%emt 0:00:02]} 2. g3 {[%emt 0:00:02]} d5 {[%emt 0:00:05]} 3. Bg2 {[%emt 0:00:01]} e6 {[%emt 0:00:01]} 4. d4 {[%emt 0:00:02]} Be7 {[%emt 0:00:05]} 5. c4 {[%emt 0:00:01]} O-O {[%emt 0:00:02]} 6. Qc2 {[%emt 0:00:01]} a5 {[%emt 0:00:03]} 7. O-O {[%emt 0:00:07]} Nbd7 {[%emt 0:00:03]} 8. Nbd2 {[%emt 0:00:14]} c5 {[%emt 0:00:08] The position is equal.} 9. cxd5 {[%emt 0:00:13]} exd5 {[%emt 0:00:19]} 10. b3 {[%emt 0:00:01]} b6 {[%emt 0:00:02]} 11. Bb2 {[%emt 0:00:01]} Ba6 {[%emt 0:00:04]} 12. Ne5 {[%emt 0:00:12]} Rc8 {[%emt 0:00:06] Repels Nc6} 13. Ndf3 {[%emt 0:00:08]} cxd4 {[%emt 0:00:22]} 14. Qd1 {[%emt 0:00:04]} ({White should play} 14. Nc6 $11) 14... Nc5 {[%emt 0:00:05]} (14... Bb4 $15 15. Nd3 Bxd3 16. Qxd3 Nc5 (16... Bc3 17. Bxc3 dxc3 18. Rfc1 $15) 17. Qxd4 Nce4) 15. Nxd4 $11 {[%emt 0:00:04]} Bd6 {[%emt 0:00:09]} 16. Nef3 {[%emt 0:00:23]} (16. Nf5 {keeps more tension.} Re8 17. Nxd6 Qxd6 18. Nc4) 16... Re8 {[%emt 0:00:03]} 17. Re1 {[%emt 0:00:02]} Nce4 {[%emt 0:00:05]} 18. a3 {[%emt 0:00:12]} (18. Bh3 $1 $15) 18... Ng4 $36 {[%emt 0:00:38][%mdl 2048] Black has strong initiative.} 19. Rf1 {[%emt 0:00:00][%cal Ob3b4]} Nc3 {[%emt 0:00:06] Black is much more active.} (19... Bc5 $17 {[%cal Og4f2] aiming for ...Ngxf2!} 20. Rb1 Ngxf2 21. Rxf2 Nxf2 22. Kxf2 Rxe2+ (22... Bxe2 23. Qd2 $15) 23. Kg1 Qe8) 20. Bxc3 $11 {[%emt 0:00:08]} Rxc3 {[%emt 0:00:01]} 21. Qd2 {[%emt 0:00:01]} Rc7 {[%emt 0:00:12]} 22. Rfe1 {[%emt 0:00:27]} Nf6 {[%emt 0:00:05]} 23. Nf5 {[%emt 0:00:11]} Bf8 {[%emt 0:00:06]} 24. N3d4 {[%emt 0:00:23]} (24. Qb2 $11 {keeps the balance.}) 24... Ne4 $17 {[%emt 0:00:02]} 25. Qf4 {[%emt 0:00:07]} g6 {[%emt 0:00:24]} 26. Nh6+ {[%emt 0:00:06]} Bxh6 {[%emt 0:00:01]} ({Black should try} 26... Kg7 $17 {...Bd6 would now be deadly.} 27. Rad1 Bd6 (27... Bxa3 $2 {is the wrong capture.} 28. Ndf5+ gxf5 29. Nxf5+ Kh8 30. Bxe4 $18) 28. Ndf5+ gxf5 29. Nxf5+ Kh8) 27. Qxh6 $11 {[%emt 0:00:01]} Qf6 {[%emt 0:00:01][%csl LRd4,LRf2]} 28. Qe3 {[%emt 0:00:14][%mdl 8192] [#] Loses the game.} (28. Bxe4 $1 $11 Qxd4 29. Bf3) 28... Rc3 $19 {[%emt 0:00:02] Black is clearly winning.} 29. Qf4 {[%emt 0:00:09]} Qxd4 {[%emt 0:00:06]} 30. Rad1 {[%emt 0:00:00]} Qe5 {[%emt 0:00:01]} 31. Qh4 {[%emt 0:00:02]} Qf6 {[%emt 0:00:04]} 32. Qxf6 {[%emt 0:00:19]} Nxf6 {[%emt 0:00:01]} 33. b4 {[%emt 0:00:01]} Bxe2 {[%emt 0:00:07]} 34. Rd2 {[%emt 0:00:01]} Bc4 {[%emt 0:00:02] Weighted Error Value: White=0.63/Black=0.42.  Loses game:     	White=1     	---        Mistake:       	White=3     	Black=3      Inaccurate:     	White=4     	Black=1      OK:         	White=7     	Black=11     Best:        	White=1     	Black=4} 0-1

[Event "EIBCC 2024"]
[Site "Skopje"]
[Date "2024.12.09"]
[Round "3.10"]
[White "Domingo Nunez, Ruben"]
[Black "Pultinevicius, Paulius"]
[Result "1/2-1/2"]
[Annotator "TA"]
[ECO "B11"]
[WhiteElo "2409"]
[BlackElo "2579"]
[PlyCount "72"]
[EventDate "2024.12.07"]
[EventCountry "MKD"]
[SourceTitle "playchess.com"]
[Source "ChessBase"]
[SourceQuality "1"]
[TimeControl "180+2"]

{[%evp 10,72,18,18,7,0,44,25,36,26,8,16,15,-41,0,9,9,5,6,3,89,93,98,70,61,70,56,13,19,28,21,21,23,15,25,19,17,20,12,24,16,13,41,35,50,32,117,112,112,111,155,160,189,170,276,273,274,281,358,368,361,360,342,360,396]} 1. e4 {[%emt 0:00:01]} c6 {[%emt 0:00:01]} 2. Nf3 {[%emt 0:00:01]} d5 {[%emt 0:00:01]} 3. Nc3 {[%emt 0:00:01]} Bg4 {[%emt 0:00:05]} 4. h3 {[%emt 0:00:01]} Bxf3 {[%emt 0:00:03]} 5. Qxf3 {[%emt 0:00:02]} e6 {[%emt 0:00:01]} 6. g3 {[%emt 0:00:01]} Nd7 {[%emt 0:00:01]} 7. Bg2 {[%emt 0:00:02]} g6 {[%emt 0:00:01]} 8. d4 {[%emt 0:00:02]} Bg7 {[%emt 0:00:02] White has an edge.} 9. Be3 {[%emt 0:00:01]} Ne7 {[%emt 0:00:06][%cal Oc6c5]} 10. O-O {[%emt 0:00:06]} Qb6 {[%emt 0:00:10][%csl LRb2,LRd4]} 11. Rab1 {[%emt 0:00:06]} ({Better is} 11. b3 $11) 11... O-O {[%emt 0:00:14]} ({Black should play} 11... Bxd4 $15 12. Bh6 Rg8) 12. Rfd1 $11 {[%emt 0:00:00]} dxe4 {[%emt 0:00:14]} 13. Nxe4 {[%emt 0:00:02][%cal Od4d5] next d5! is good for White.} Nf5 {[%emt 0:00:05]} 14. c3 {[%emt 0:00:01]} e5 {[%emt 0:00:20] [#] Dodges Bf4} (14... Nxe3 $11 {keeps the balance.} 15. Qxe3 Rad8) 15. dxe5 $1 $16 {[%emt 0:01:16]} Nxe5 {[%emt 0:00:11]} 16. Bxb6 {[%emt 0:00:02] A strong pair of Bishops.} Nxf3+ {[%emt 0:00:02]} 17. Bxf3 {[%emt 0:00:01]} axb6 {[%emt 0:00:01]} 18. a3 {[%emt 0:00:01]} Rad8 {[%emt 0:00:32]} 19. Bg4 {[%emt 0:00:01]} Ne7 {[%emt 0:00:12] And now ...f5 would win.} 20. Nd6 {[%emt 0:00:01]} Rb8 {[%emt 0:00:58]} 21. Nc4 {[%emt 0:00:08][%cal Bd6c4,Bc4b6,Bb6d7,Bd7c5,Bc5b7,Bb7d8][%mdl 32]} b5 {[%emt 0:00:04]} 22. Nb6 {[%emt 0:00:01] Black must now prevent Nd7.} Rfd8 {[%emt 0:00:02]} 23. Nd7 {[%emt 0:00:01]} Ra8 {[%emt 0:00:00]} 24. Nc5 $36 {[%emt 0:00:01][%mdl 2048] White fights for an advantage.} b6 {[%emt 0:00:02]} 25. Nb7 {[%emt 0:00:04]} Rdb8 {[%emt 0:00:07]} 26. Rd7 {[%emt 0:00:05]} Nd5 {[%emt 0:00:00]} 27. Bf3 {[%emt 0:00:08]} Ra7 {[%emt 0:00:16] [#]} (27... Nf6 $14 28. Rd2 Rxb7 29. Bxc6 Raa7) 28. Rd8+ $1 {[%emt 0:00:16]} Rxd8 {[%emt 0:00:01]} 29. Nxd8 {[%emt 0:00:00]} Rd7 {[%emt 0:00:04]} 30. Nxc6 {[%emt 0:00:03] Bxd5 is the strong threat.} Nf6 {[%emt 0:00:03]} 31. Rd1 {[%emt 0:00:03]} Rc7 {[%emt 0:00:01]} (31... Rxd1+ {is a better defense.} 32. Bxd1 h5 33. Ne7+ Kf8) 32. Rd8+ $18 {[%emt 0:00:04]} Bf8 {[%emt 0:00:01]} 33. Nd4 {[%emt 0:00:00]} Rc5 {[%emt 0:00:01]} 34. Rb8 {[%emt 0:00:05]} Nd7 {[%emt 0:00:00]} 35. Rb7 {[%emt 0:00:01]} Ne5 {[%emt 0:00:10]} 36. Be2 {[%emt 0:00:04] Wards off Nd3} ({Don't play} 36. Rxb6 Nd3 37. Rxb5 (37. Nxb5 Nxb2 38. Rb7 Nc4 $18) 37... Rxb5 38. Nxb5 Nxb2 $18) 36... Rd5 {[%emt 0:00:00][%mdl 32768] Weighted Error Value: White=0.08 (flawless) /Black=0.24 (precise) .  Mistake:       	White=1     	Black=4      Inaccurate:     	White=1     	Black=3      OK:         	White=17    	Black=14     Best:        	---       	Black=3      Strong:       	White=2     	---       . An unexpected result.} 1/2-1/2